[Event "Titled Tuesday Blitz December 20 Late 2022"]
[White "Rustemov, Alexander"]
[Black "Chigaev, Maksim"]
[WhiteFideId "4119002"]
[BlackFideId "4108116"]
[WhiteElo "2889"]
[BlackElo "2542"]
[Result "1/2-1/2"]
[Round "07"]
[TimeControl "180+1"]
[Date "2022.12.20"]
[WhiteClock "0:00:17"]
[BlackClock "0:00:09"]

1. d4 {[%clk 0:03:00]}  Nf6 {[%clk 0:03:00]} 2. c4 {[%clk 0:03:01]}  e6 {[%clk 0:02:57]} 3. Nf3 {[%clk 0:03:01]}  Bb4+ {[%clk 0:02:55]} 4. Bd2 {[%clk 0:03:01]}  a5 {[%clk 0:02:56]} 5. g3 {[%clk 0:03:01]}  d5 {[%clk 0:02:56]} 6. Qc2 {[%clk 0:03:01]}  dxc4 {[%clk 0:02:50]} 7. Qxc4 {[%clk 0:03:01]}  b6 {[%clk 0:02:36]} 8. Bg2 {[%clk 0:02:59]}  Ba6 {[%clk 0:02:34]} 9. Qc2 {[%clk 0:02:55]}  c5 {[%clk 0:02:32]} 10. Bxb4 {[%clk 0:02:34]}  cxb4 {[%clk 0:02:29]} 11. O-O {[%clk 0:02:30]}  O-O {[%clk 0:02:29]} 12. Rc1 {[%clk 0:02:18]}  Nbd7 {[%clk 0:02:23]} 13. e3 {[%clk 0:02:16]}  Rc8 {[%clk 0:02:20]} 14. Qd1 {[%clk 0:02:16]}  Rxc1 {[%clk 0:01:58]} 15. Qxc1 {[%clk 0:02:16]}  Qb8 {[%clk 0:01:59]} 16. Nbd2 {[%clk 0:02:14]}  Rc8 {[%clk 0:01:59]} 17. Qd1 {[%clk 0:02:12]}  Qc7 {[%clk 0:01:59]} 18. Nb3 {[%clk 0:02:11]}  Qc2 {[%clk 0:01:56]} 19. Qxc2 {[%clk 0:01:55]}  Rxc2 {[%clk 0:01:56]} 20. Rb1 {[%clk 0:01:53]}  a4 {[%clk 0:01:17]} 21. Na1 {[%clk 0:01:39]}  Rc7 {[%clk 0:01:13]} 22. Bf1 {[%clk 0:01:37]}  Bxf1 {[%clk 0:01:11]} 23. Kxf1 {[%clk 0:01:36]}  Ne4 {[%clk 0:01:11]} 24. Ke2 {[%clk 0:01:32]}  f5 {[%clk 0:01:06]} 25. Ne1 {[%clk 0:01:28]}  Ndf6 {[%clk 0:00:59]} 26. f3 {[%clk 0:01:27]}  Nd6 {[%clk 0:00:59]} 27. Nd3 {[%clk 0:01:23]}  Nd5 {[%clk 0:00:58]} 28. Rc1 {[%clk 0:01:22]}  Rxc1 {[%clk 0:00:49]} 29. Nxc1 {[%clk 0:01:23]}  Nc4 {[%clk 0:00:49]} 30. e4 {[%clk 0:01:11]}  fxe4 {[%clk 0:00:34]} 31. fxe4 {[%clk 0:01:11]}  Nf6 {[%clk 0:00:33]} 32. b3 {[%clk 0:00:50]}  axb3 {[%clk 0:00:30]} 33. axb3 {[%clk 0:00:49]}  Na5 {[%clk 0:00:21]} 34. Kf3 {[%clk 0:00:47]}  Nc6 {[%clk 0:00:19]} 35. Nc2 {[%clk 0:00:47]}  Kf7 {[%clk 0:00:13]} 36. Nd3 {[%clk 0:00:47]}  Na5 {[%clk 0:00:13]} 37. Na1 {[%clk 0:00:39]}  Nc6 {[%clk 0:00:13]} 38. Nc2 {[%clk 0:00:30]}  Na5 {[%clk 0:00:13]} 39. Nc1 {[%clk 0:00:30]}  Nc6 {[%clk 0:00:12]} 40. h3 {[%clk 0:00:25]}  g5 {[%clk 0:00:10]} 41. Ke3 {[%clk 0:00:25]}  Nh5 {[%clk 0:00:09]} 42. Kf3 {[%clk 0:00:23]}  Nf6 {[%clk 0:00:09]} 43. Nd3 {[%clk 0:00:22]}  Na5 {[%clk 0:00:09]} 44. Nc1 {[%clk 0:00:17]}  Nc6 {[%clk 0:00:09]} 1/2-1/2


[Site "https://www.chess.com"]

[Event "Titled Tuesday Blitz December 20 Late 2022"]
[White "Shimanov, Aleksandr"]
[Black "Holt, Conrad"]
[WhiteFideId "4198603"]
[BlackFideId "2034387"]
[WhiteElo "2605"]
[BlackElo "2592"]
[Result "1-0"]
[Round "07"]
[TimeControl "180+1"]
[Date "2022.12.20"]
[WhiteClock "0:00:36"]
[BlackClock "0:00:15"]

1. e4 {[%clk 0:03:00]}  e6 {[%clk 0:02:59]} 2. d4 {[%clk 0:03:00]}  d5 {[%clk 0:02:59]} 3. Nc3 {[%clk 0:03:01]}  Nf6 {[%clk 0:02:59]} 4. Bg5 {[%clk 0:03:00]}  dxe4 {[%clk 0:02:59]} 5. Nxe4 {[%clk 0:02:59]}  Be7 {[%clk 0:02:59]} 6. Nxf6+ {[%clk 0:02:57]}  Bxf6 {[%clk 0:03:00]} 7. Bxf6 {[%clk 0:02:57]}  Qxf6 {[%clk 0:03:00]} 8. Nf3 {[%clk 0:02:56]}  c5 {[%clk 0:02:59]} 9. Bb5+ {[%clk 0:02:53]}  Bd7 {[%clk 0:02:59]} 10. Qe2 {[%clk 0:02:46]}  cxd4 {[%clk 0:02:55]} 11. O-O-O {[%clk 0:02:44]}  O-O {[%clk 0:02:52]} 12. Bxd7 {[%clk 0:02:43]}  Nxd7 {[%clk 0:02:51]} 13. Rxd4 {[%clk 0:02:44]}  Nb6 {[%clk 0:02:42]} 14. Rhd1 {[%clk 0:02:42]}  Rac8 {[%clk 0:02:40]} 15. Ne5 {[%clk 0:02:40]}  Qh6+ {[%clk 0:02:31]} 16. f4 {[%clk 0:02:38]}  Qxh2 {[%clk 0:02:29]} 17. Qf3 {[%clk 0:02:32]}  Nd5 {[%clk 0:02:19]} 18. Kb1 {[%clk 0:02:26]}  b5 {[%clk 0:02:15]} 19. c3 {[%clk 0:01:59]}  a5 {[%clk 0:02:12]} 20. a3 {[%clk 0:01:58]}  Rc7 {[%clk 0:02:00]} 21. g4 {[%clk 0:01:52]}  f6 {[%clk 0:00:59]} 22. Rh1 {[%clk 0:01:08]}  fxe5 {[%clk 0:00:58]} 23. Rxh2 {[%clk 0:01:08]}  exd4 {[%clk 0:00:58]} 24. Qe4 {[%clk 0:01:08]}  dxc3 {[%clk 0:00:56]} 25. Qxe6+ {[%clk 0:01:07]}  Kh8 {[%clk 0:00:53]} 26. Qxd5 {[%clk 0:01:07]}  b4 {[%clk 0:00:50]} 27. axb4 {[%clk 0:01:02]}  axb4 {[%clk 0:00:50]} 28. Qe4 {[%clk 0:00:58]}  g6 {[%clk 0:00:43]} 29. Qxb4 {[%clk 0:00:50]}  Rfc8 {[%clk 0:00:28]} 30. Rc2 {[%clk 0:00:42]}  Rc4 {[%clk 0:00:27]} 31. Qb7 {[%clk 0:00:39]}  Rf8 {[%clk 0:00:16]} 32. Rxc3 {[%clk 0:00:38]}  Rcxf4 {[%clk 0:00:16]} 33. Rc7 {[%clk 0:00:36]}  Rf1+ {[%clk 0:00:15]} 34. Ka2 {[%clk 0:00:36]} 1-0


[Site "https://www.chess.com"]

[Event "Titled Tuesday Blitz December 20 Late 2022"]
[White "Shoker, Samy"]
[Black "Yedidia, Daniel"]
[WhiteFideId "627143"]
[BlackFideId "30905907"]
[WhiteElo "2733"]
[BlackElo "2585"]
[Result "1-0"]
[Round "07"]
[TimeControl "180+1"]
[Date "2022.12.21"]
[WhiteClock "0:00:20"]
[BlackClock "0:00:01"]

1. c4 {[%clk 0:03:00]}  Nf6 {[%clk 0:02:54]} 2. g3 {[%clk 0:03:01]}  e5 {[%clk 0:02:54]} 3. Bg2 {[%clk 0:03:02]}  Nc6 {[%clk 0:02:54]} 4. Nc3 {[%clk 0:03:01]}  Bb4 {[%clk 0:02:55]} 5. Na4 {[%clk 0:03:02]}  Be7 {[%clk 0:02:53]} 6. d3 {[%clk 0:03:01]}  O-O {[%clk 0:02:53]} 7. Nf3 {[%clk 0:03:01]}  d5 {[%clk 0:02:53]} 8. cxd5 {[%clk 0:03:01]}  Nxd5 {[%clk 0:02:54]} 9. O-O {[%clk 0:03:02]}  Be6 {[%clk 0:02:52]} 10. b3 {[%clk 0:03:02]}  Bf6 {[%clk 0:02:43]} 11. Bb2 {[%clk 0:03:00]}  Re8 {[%clk 0:02:41]} 12. Rc1 {[%clk 0:02:56]}  Ncb4 {[%clk 0:02:17]} 13. a3 {[%clk 0:02:49]}  Na6 {[%clk 0:02:17]} 14. Qc2 {[%clk 0:02:45]}  Bg4 {[%clk 0:02:03]} 15. h3 {[%clk 0:02:44]}  Bd7 {[%clk 0:02:01]} 16. Nc5 {[%clk 0:02:31]}  Nxc5 {[%clk 0:02:00]} 17. Qxc5 {[%clk 0:02:31]}  c6 {[%clk 0:01:57]} 18. e4 {[%clk 0:02:22]}  Nc7 {[%clk 0:01:46]} 19. Bxe5 {[%clk 0:02:15]}  Bxe5 {[%clk 0:01:35]} 20. Nxe5 {[%clk 0:02:15]}  b6 {[%clk 0:01:26]} 21. Qd6 {[%clk 0:02:04]}  c5 {[%clk 0:01:09]} 22. Nxd7 {[%clk 0:01:57]}  Re6 {[%clk 0:01:10]} 23. Qf4 {[%clk 0:01:29]}  Qxd7 {[%clk 0:01:10]} 24. d4 {[%clk 0:01:24]}  Nb5 {[%clk 0:00:56]} 25. dxc5 {[%clk 0:01:22]}  Nd4 {[%clk 0:00:53]} 26. Qe3 {[%clk 0:01:21]}  Rd8 {[%clk 0:00:47]} 27. cxb6 {[%clk 0:01:17]}  Rxb6 {[%clk 0:00:48]} 28. b4 {[%clk 0:01:17]}  h6 {[%clk 0:00:44]} 29. Rc5 {[%clk 0:01:16]}  Qa4 {[%clk 0:00:39]} 30. Rfc1 {[%clk 0:01:07]}  Rbb8 {[%clk 0:00:26]} 31. Rc7 {[%clk 0:00:58]}  a5 {[%clk 0:00:20]} 32. Kh2 {[%clk 0:00:24]}  axb4 {[%clk 0:00:19]} 33. axb4 {[%clk 0:00:25]}  Qxb4 {[%clk 0:00:18]} 34. R1c4 {[%clk 0:00:24]}  Qd6 {[%clk 0:00:14]} 35. e5 {[%clk 0:00:23]}  Qb6 {[%clk 0:00:14]} 36. Qf4 {[%clk 0:00:24]}  Ne6 {[%clk 0:00:02]} 37. Qxf7+ {[%clk 0:00:23]}  Kh8 {[%clk 0:00:02]} 38. R4c6 {[%clk 0:00:21]}  Rf8 {[%clk 0:00:01]} 39. Rxb6 {[%clk 0:00:20]} 1-0


[Site "https://www.chess.com"]

[Event "Titled Tuesday Blitz December 20 Late 2022"]
[White "Skibbe, Willi"]
[Black "Floresvillar Gonzalez, Luis Migu"]
[WhiteFideId "4682190"]
[BlackFideId "5100542"]
[WhiteElo "2339"]
[BlackElo "2040"]
[Result "0-1"]
[Round "07"]
[TimeControl "180+1"]
[Date "2022.12.21"]
[WhiteClock "0:01:19"]
[BlackClock "0:01:02"]

1. c4 {[%clk 0:03:00]}  e6 {[%clk 0:02:58]} 2. g3 {[%clk 0:03:00]}  d5 {[%clk 0:02:58]} 3. Bg2 {[%clk 0:03:00]}  c6 {[%clk 0:02:58]} 4. Nf3 {[%clk 0:02:56]}  Nf6 {[%clk 0:02:58]} 5. d4 {[%clk 0:02:55]}  Bb4+ {[%clk 0:02:56]} 6. Bd2 {[%clk 0:02:54]}  Bxd2+ {[%clk 0:02:56]} 7. Nbxd2 {[%clk 0:02:54]}  O-O {[%clk 0:02:57]} 8. O-O {[%clk 0:02:54]}  Re8 {[%clk 0:02:52]} 9. Qc2 {[%clk 0:02:53]}  Nbd7 {[%clk 0:02:50]} 10. e4 {[%clk 0:02:51]}  Nxe4 {[%clk 0:02:49]} 11. Nxe4 {[%clk 0:02:50]}  dxe4 {[%clk 0:02:49]} 12. Qxe4 {[%clk 0:02:51]}  Qf6 {[%clk 0:02:47]} 13. Ne5 {[%clk 0:02:48]}  Qf5 {[%clk 0:02:35]} 14. Qxf5 {[%clk 0:02:30]}  exf5 {[%clk 0:02:34]} 15. Nxd7 {[%clk 0:02:31]}  Bxd7 {[%clk 0:02:33]} 16. Rfe1 {[%clk 0:02:29]}  f4 {[%clk 0:02:28]} 17. gxf4 {[%clk 0:02:26]}  f6 {[%clk 0:02:24]} 18. Re3 {[%clk 0:02:24]}  Kf7 {[%clk 0:02:21]} 19. Rae1 {[%clk 0:02:22]}  a5 {[%clk 0:02:16]} 20. Rxe8 {[%clk 0:02:20]}  Rxe8 {[%clk 0:02:13]} 21. Rxe8 {[%clk 0:02:19]}  Kxe8 {[%clk 0:02:07]} 22. b3 {[%clk 0:02:17]}  b6 {[%clk 0:02:01]} 23. Kf1 {[%clk 0:02:16]}  Ke7 {[%clk 0:02:01]} 24. Ke2 {[%clk 0:02:16]}  Kd6 {[%clk 0:01:54]} 25. Be4 {[%clk 0:02:12]}  h6 {[%clk 0:01:53]} 26. Kd3 {[%clk 0:02:11]}  Bh3 {[%clk 0:01:51]} 27. Kc3 {[%clk 0:02:10]}  Bf1 {[%clk 0:01:47]} 28. a3 {[%clk 0:02:06]}  Be2 {[%clk 0:01:47]} 29. b4 {[%clk 0:02:05]}  axb4+ {[%clk 0:01:47]} 30. axb4 {[%clk 0:02:05]}  c5 {[%clk 0:01:39]} 31. dxc5+ {[%clk 0:02:04]}  bxc5 {[%clk 0:01:39]} 32. b5 {[%clk 0:02:05]}  Bf1 {[%clk 0:01:37]} 33. b6 {[%clk 0:02:03]}  Be2 {[%clk 0:01:37]} 34. Bd5 {[%clk 0:02:02]}  Bd1 {[%clk 0:01:30]} 35. b7 {[%clk 0:02:01]}  Kc7 {[%clk 0:01:29]} 36. Kd3 {[%clk 0:01:54]}  Ba4 {[%clk 0:01:22]} 37. Ke4 {[%clk 0:01:50]}  Bc2+ {[%clk 0:01:21]} 38. Kf3 {[%clk 0:01:50]}  Bf5 {[%clk 0:01:19]} 39. Be4 {[%clk 0:01:48]}  Be6 {[%clk 0:01:12]} 40. h4 {[%clk 0:01:22]}  Bxc4 {[%clk 0:01:09]} 41. Kg4 {[%clk 0:01:22]}  Be6+ {[%clk 0:01:02]} 42. Kh5 {[%clk 0:01:18]}  Bf7+ {[%clk 0:01:02]} 43. Kg4 {[%clk 0:01:19]}  Be6+ {[%clk 0:01:02]} 0-1


[Site "https://www.chess.com"]

[Event "Titled Tuesday Blitz December 20 Late 2022"]
[White "Skvortsov, Andrei"]
[Black "Izeta Txabarri, Felix"]
[WhiteFideId "24108600"]
[BlackFideId "2200260"]
[WhiteElo "2285"]
[BlackElo "2461"]
[Result "0-1"]
[Round "07"]
[TimeControl "180+1"]
[Date "2022.12.21"]
[WhiteClock "0:00:43"]
[BlackClock "0:00:06"]

1. d4 {[%clk 0:03:00]}  Nf6 {[%clk 0:02:59]} 2. c4 {[%clk 0:02:59]}  e6 {[%clk 0:02:58]} 3. Nc3 {[%clk 0:02:58]}  Bb4 {[%clk 0:02:58]} 4. a3 {[%clk 0:02:57]}  Bxc3+ {[%clk 0:02:58]} 5. bxc3 {[%clk 0:02:58]}  Ne4 {[%clk 0:02:58]} 6. Qd3 {[%clk 0:02:56]}  f5 {[%clk 0:02:55]} 7. g3 {[%clk 0:02:54]}  b6 {[%clk 0:02:48]} 8. f3 {[%clk 0:02:54]}  Nd6 {[%clk 0:02:44]} 9. e4 {[%clk 0:02:54]}  Ba6 {[%clk 0:02:12]} 10. e5 {[%clk 0:02:43]}  Nxc4 {[%clk 0:01:56]} 11. Qc2 {[%clk 0:02:37]}  Nc6 {[%clk 0:01:47]} 12. Nh3 {[%clk 0:02:29]}  O-O {[%clk 0:01:46]} 13. Nf4 {[%clk 0:02:25]}  Qc8 {[%clk 0:01:35]} 14. h4 {[%clk 0:02:23]}  N4a5 {[%clk 0:01:32]} 15. Nd3 {[%clk 0:02:16]}  Bc4 {[%clk 0:01:25]} 16. Rb1 {[%clk 0:02:15]}  d6 {[%clk 0:01:14]} 17. exd6 {[%clk 0:02:08]}  cxd6 {[%clk 0:01:14]} 18. Kf2 {[%clk 0:02:03]}  e5 {[%clk 0:01:14]} 19. dxe5 {[%clk 0:02:01]}  dxe5 {[%clk 0:01:13]} 20. Be3 {[%clk 0:01:56]}  e4 {[%clk 0:01:04]} 21. Nf4 {[%clk 0:01:51]}  exf3 {[%clk 0:00:49]} 22. Bxc4+ {[%clk 0:01:37]}  Nxc4 {[%clk 0:00:49]} 23. Rhe1 {[%clk 0:01:35]}  N6e5 {[%clk 0:00:49]} 24. Bd4 {[%clk 0:01:34]}  Ng4+ {[%clk 0:00:48]} 25. Kf1 {[%clk 0:01:31]}  Qc6 {[%clk 0:00:29]} 26. Re6 {[%clk 0:01:22]}  Qxe6 {[%clk 0:00:28]} 27. Nxe6 {[%clk 0:01:21]}  Nge3+ {[%clk 0:00:28]} 28. Bxe3 {[%clk 0:01:20]}  Nxe3+ {[%clk 0:00:27]} 29. Kf2 {[%clk 0:01:20]}  Nxc2 {[%clk 0:00:28]} 30. Nxf8 {[%clk 0:01:19]}  Kxf8 {[%clk 0:00:28]} 31. a4 {[%clk 0:01:15]}  Na3 {[%clk 0:00:27]} 32. Rd1 {[%clk 0:01:11]}  Re8 {[%clk 0:00:21]} 33. Rd5 {[%clk 0:01:04]}  g6 {[%clk 0:00:19]} 34. h5 {[%clk 0:01:04]}  Nc4 {[%clk 0:00:19]} 35. Kxf3 {[%clk 0:00:59]}  Kf7 {[%clk 0:00:13]} 36. Rd4 {[%clk 0:00:57]}  Ne5+ {[%clk 0:00:12]} 37. Kf2 {[%clk 0:00:57]}  Kf6 {[%clk 0:00:10]} 38. hxg6 {[%clk 0:00:52]}  hxg6 {[%clk 0:00:10]} 39. Rd5 {[%clk 0:00:53]}  Re7 {[%clk 0:00:10]} 40. a5 {[%clk 0:00:51]}  Rd7 {[%clk 0:00:09]} 41. Rb5 {[%clk 0:00:52]}  bxa5 {[%clk 0:00:07]} 42. Rxa5 {[%clk 0:00:53]}  Rc7 {[%clk 0:00:07]} 43. Kg2 {[%clk 0:00:52]}  Rxc3 {[%clk 0:00:04]} 44. Rxa7 {[%clk 0:00:51]}  Rc2+ {[%clk 0:00:04]} 45. Kf1 {[%clk 0:00:50]}  Kg5 {[%clk 0:00:04]} 46. Ra5 {[%clk 0:00:50]}  Nf3 {[%clk 0:00:03]} 47. Ra4 {[%clk 0:00:48]}  Rd2 {[%clk 0:00:03]} 48. Rf4 {[%clk 0:00:47]}  Nd4 {[%clk 0:00:01]} 49. Ke1 {[%clk 0:00:47]}  Rd3 {[%clk 0:00:01]} 50. Kf1 {[%clk 0:00:45]}  Ne6 {[%clk 0:00:01]} 51. Ra4 {[%clk 0:00:44]}  Rxg3 {[%clk 0:00:02]} 52. Kf2 {[%clk 0:00:45]}  f4 {[%clk 0:00:02]} 53. Ra6 {[%clk 0:00:46]}  Kg4 {[%clk 0:00:02]} 54. Ra5 {[%clk 0:00:47]}  Nd4 {[%clk 0:00:02]} 55. Ra6 {[%clk 0:00:47]}  g5 {[%clk 0:00:03]} 56. Ra8 {[%clk 0:00:48]}  Rf3+ {[%clk 0:00:03]} 57. Kg2 {[%clk 0:00:48]}  Re3 {[%clk 0:00:04]} 58. Rd8 {[%clk 0:00:48]}  Re2+ {[%clk 0:00:05]} 59. Kf1 {[%clk 0:00:49]}  f3 {[%clk 0:00:05]} 60. Rxd4+ {[%clk 0:00:48]}  Kg3 {[%clk 0:00:06]} 61. Ra4 {[%clk 0:00:42]}  g4 {[%clk 0:00:06]} 62. Ra1 {[%clk 0:00:42]}  Rh2 {[%clk 0:00:05]} 63. Kg1 {[%clk 0:00:42]}  f2+ {[%clk 0:00:06]} 64. Kf1 {[%clk 0:00:43]}  Rh1+ {[%clk 0:00:06]} 0-1


[Site "https://www.chess.com"]

[Event "Titled Tuesday Blitz December 20 Late 2022"]
[White "Sztokbant, Bernardo Vainzoff"]
[Black "Vetoshko, Volodymyr"]
[WhiteFideId "2115956"]
[BlackFideId "14122480"]
[WhiteElo "2465"]
[BlackElo "2664"]
[Result "1/2-1/2"]
[Round "07"]
[TimeControl "180+1"]
[Date "2022.12.21"]
[WhiteClock "0:00:02"]
[BlackClock "0:00:06"]

1. e4 {[%clk 0:03:00]}  c6 {[%clk 0:02:57]} 2. Nf3 {[%clk 0:03:01]}  d5 {[%clk 0:02:58]} 3. Nc3 {[%clk 0:03:01]}  dxe4 {[%clk 0:02:56]} 4. Nxe4 {[%clk 0:03:02]}  Nf6 {[%clk 0:02:56]} 5. Nxf6+ {[%clk 0:03:02]}  exf6 {[%clk 0:02:57]} 6. d4 {[%clk 0:03:00]}  Bd6 {[%clk 0:02:58]} 7. Bd3 {[%clk 0:03:00]}  O-O {[%clk 0:02:57]} 8. O-O {[%clk 0:03:00]}  Bg4 {[%clk 0:02:56]} 9. h3 {[%clk 0:03:00]}  Bh5 {[%clk 0:02:56]} 10. c3 {[%clk 0:03:00]}  Na6 {[%clk 0:02:55]} 11. Re1 {[%clk 0:02:57]}  Nc7 {[%clk 0:02:50]} 12. Be3 {[%clk 0:02:55]}  Nd5 {[%clk 0:02:47]} 13. c4 {[%clk 0:02:50]}  Nxe3 {[%clk 0:02:46]} 14. Rxe3 {[%clk 0:02:51]}  Bf4 {[%clk 0:02:27]} 15. Re4 {[%clk 0:02:50]}  Bc7 {[%clk 0:02:23]} 16. Rh4 {[%clk 0:02:40]}  Bg6 {[%clk 0:02:22]} 17. Bxg6 {[%clk 0:02:39]}  hxg6 {[%clk 0:02:23]} 18. Re4 {[%clk 0:02:39]}  g5 {[%clk 0:02:15]} 19. Re2 {[%clk 0:02:25]}  g6 {[%clk 0:02:06]} 20. d5 {[%clk 0:02:20]}  c5 {[%clk 0:02:07]} 21. Nd2 {[%clk 0:02:07]}  Qd6 {[%clk 0:02:02]} 22. g3 {[%clk 0:02:05]}  f5 {[%clk 0:02:01]} 23. Nf3 {[%clk 0:02:01]}  Qf6 {[%clk 0:01:48]} 24. Qd2 {[%clk 0:01:48]}  g4 {[%clk 0:01:45]} 25. hxg4 {[%clk 0:01:40]}  fxg4 {[%clk 0:01:46]} 26. Nh2 {[%clk 0:01:27]}  Rae8 {[%clk 0:01:03]} 27. Nxg4 {[%clk 0:01:20]}  Qf3 {[%clk 0:01:02]} 28. Rae1 {[%clk 0:01:14]}  Rxe2 {[%clk 0:00:22]} 29. Qxe2 {[%clk 0:01:14]}  Qxe2 {[%clk 0:00:22]} 30. Rxe2 {[%clk 0:01:14]}  f5 {[%clk 0:00:23]} 31. Nh2 {[%clk 0:01:06]}  Kf7 {[%clk 0:00:18]} 32. Nf3 {[%clk 0:01:05]}  Re8 {[%clk 0:00:07]} 33. Ng5+ {[%clk 0:01:05]}  Kf8 {[%clk 0:00:08]} 34. Ne6+ {[%clk 0:00:44]}  Kg8 {[%clk 0:00:05]} 35. Kf1 {[%clk 0:00:44]}  Bd6 {[%clk 0:00:03]} 36. Nf4 {[%clk 0:00:41]}  Rxe2 {[%clk 0:00:02]} 37. Kxe2 {[%clk 0:00:41]}  Kf7 {[%clk 0:00:03]} 38. Ne6 {[%clk 0:00:35]}  Kf6 {[%clk 0:00:04]} 39. f4 {[%clk 0:00:34]}  b6 {[%clk 0:00:03]} 40. Kf3 {[%clk 0:00:34]}  a6 {[%clk 0:00:04]} 41. Ke2 {[%clk 0:00:25]}  b5 {[%clk 0:00:04]} 42. Kd3 {[%clk 0:00:20]}  Ke7 {[%clk 0:00:04]} 43. a3 {[%clk 0:00:17]}  Bb8 {[%clk 0:00:04]} 44. cxb5 {[%clk 0:00:14]}  axb5 {[%clk 0:00:04]} 45. Nxc5 {[%clk 0:00:14]}  Kd6 {[%clk 0:00:04]} 46. Na6 {[%clk 0:00:09]}  Ba7 {[%clk 0:00:04]} 47. Nb4 {[%clk 0:00:09]}  Bf2 {[%clk 0:00:04]} 48. Ke2 {[%clk 0:00:08]}  Bxg3 {[%clk 0:00:04]} 49. Kf3 {[%clk 0:00:09]}  Be1 {[%clk 0:00:05]} 50. Nd3 {[%clk 0:00:08]}  Bd2 {[%clk 0:00:04]} 51. Ne5 {[%clk 0:00:08]}  Kxd5 {[%clk 0:00:03]} 52. Nxg6 {[%clk 0:00:09]}  Bc1 {[%clk 0:00:03]} 53. b3 {[%clk 0:00:04]}  Bxa3 {[%clk 0:00:03]} 54. Nh4 {[%clk 0:00:03]}  Ke6 {[%clk 0:00:02]} 55. Ke3 {[%clk 0:00:03]}  Bc5+ {[%clk 0:00:03]} 56. Kf3 {[%clk 0:00:03]}  Bd6 {[%clk 0:00:03]} 57. Ng6 {[%clk 0:00:03]}  Kd5 {[%clk 0:00:03]} 58. Nh4 {[%clk 0:00:03]}  Ke6 {[%clk 0:00:04]} 59. Ng6 {[%clk 0:00:02]}  Bc7 {[%clk 0:00:04]} 60. Nh4 {[%clk 0:00:03]}  Bd8 {[%clk 0:00:04]} 61. Ng2 {[%clk 0:00:02]}  Kd5 {[%clk 0:00:04]} 62. Ne3+ {[%clk 0:00:03]}  Kd4 {[%clk 0:00:04]} 63. Nxf5+ {[%clk 0:00:03]}  Kc3 {[%clk 0:00:05]} 64. Nd6 {[%clk 0:00:04]}  b4 {[%clk 0:00:06]} 65. Nb7 {[%clk 0:00:03]}  Be7 {[%clk 0:00:05]} 66. Na5 {[%clk 0:00:02]}  Bd8 {[%clk 0:00:06]} 67. Nc6 {[%clk 0:00:02]}  Bc7 {[%clk 0:00:04]} 68. Nxb4 {[%clk 0:00:02]}  Kxb4 {[%clk 0:00:05]} 69. Ke4 {[%clk 0:00:02]}  Bxf4 {[%clk 0:00:05]} 70. Kxf4 {[%clk 0:00:02]}  Kxb3 {[%clk 0:00:06]} 1/2-1/2


[Site "https://www.chess.com"]

[Event "Titled Tuesday Blitz December 20 Late 2022"]
[White "Tatarinov, Dmitry"]
[Black "Fiorito, Francisco"]
[WhiteFideId "24160067"]
[BlackFideId "180165"]
[WhiteElo "2326"]
[BlackElo "2348"]
[Result "1/2-1/2"]
[Round "07"]
[TimeControl "180+1"]
[Date "2022.12.21"]
[WhiteClock "0:00:11"]
[BlackClock "0:00:08"]

1. d4 {[%clk 0:02:48]}  Nf6 {[%clk 0:02:56]} 2. a3 {[%clk 0:02:48]}  g6 {[%clk 0:02:53]} 3. Nf3 {[%clk 0:02:48]}  Bg7 {[%clk 0:02:53]} 4. c4 {[%clk 0:02:44]}  O-O {[%clk 0:02:50]} 5. Nc3 {[%clk 0:02:44]}  d5 {[%clk 0:02:50]} 6. c5 {[%clk 0:02:39]}  b6 {[%clk 0:02:48]} 7. b4 {[%clk 0:02:39]}  a5 {[%clk 0:02:48]} 8. Bf4 {[%clk 0:02:39]}  Nh5 {[%clk 0:02:33]} 9. Bg5 {[%clk 0:02:34]}  axb4 {[%clk 0:02:23]} 10. axb4 {[%clk 0:02:34]}  Rxa1 {[%clk 0:02:22]} 11. Qxa1 {[%clk 0:02:35]}  Nc6 {[%clk 0:02:22]} 12. cxb6 {[%clk 0:02:09]}  cxb6 {[%clk 0:02:18]} 13. e3 {[%clk 0:02:06]}  Nxb4 {[%clk 0:02:16]} 14. Qa4 {[%clk 0:02:07]}  Qd6 {[%clk 0:02:03]} 15. Nb5 {[%clk 0:02:00]}  Bd7 {[%clk 0:01:44]} 16. Nxd6 {[%clk 0:01:57]}  Bxa4 {[%clk 0:01:44]} 17. Bxe7 {[%clk 0:01:57]}  Ra8 {[%clk 0:01:41]} 18. Be2 {[%clk 0:01:57]}  f6 {[%clk 0:01:31]} 19. O-O {[%clk 0:01:53]}  Nc6 {[%clk 0:01:31]} 20. Ra1 {[%clk 0:01:29]}  Nxe7 {[%clk 0:01:28]} 21. Bb5 {[%clk 0:01:30]}  Rd8 {[%clk 0:01:23]} 22. Nb7 {[%clk 0:01:26]}  Rb8 {[%clk 0:01:17]} 23. Rxa4 {[%clk 0:01:26]}  Rxb7 {[%clk 0:01:16]} 24. g4 {[%clk 0:01:25]}  Nf4 {[%clk 0:01:01]} 25. exf4 {[%clk 0:01:25]}  h5 {[%clk 0:00:52]} 26. h3 {[%clk 0:01:22]}  hxg4 {[%clk 0:00:51]} 27. hxg4 {[%clk 0:01:23]}  Rc7 {[%clk 0:00:51]} 28. Kg2 {[%clk 0:01:23]}  Bh6 {[%clk 0:00:45]} 29. g5 {[%clk 0:01:17]}  fxg5 {[%clk 0:00:45]} 30. fxg5 {[%clk 0:01:18]}  Bg7 {[%clk 0:00:44]} 31. Ra6 {[%clk 0:01:15]}  Rb7 {[%clk 0:00:24]} 32. Ra8+ {[%clk 0:01:11]}  Kh7 {[%clk 0:00:24]} 33. Bd3 {[%clk 0:00:59]}  Rc7 {[%clk 0:00:19]} 34. Rb8 {[%clk 0:00:56]}  Rc3 {[%clk 0:00:19]} 35. Bb5 {[%clk 0:00:53]}  Nf5 {[%clk 0:00:12]} 36. Rb7 {[%clk 0:00:49]}  Rxf3 {[%clk 0:00:11]} 37. Kxf3 {[%clk 0:00:39]}  Nxd4+ {[%clk 0:00:11]} 38. Kg4 {[%clk 0:00:39]}  Nxb5 {[%clk 0:00:11]} 39. Rxb6 {[%clk 0:00:39]}  Nc3 {[%clk 0:00:09]} 40. f4 {[%clk 0:00:35]}  Nd1 {[%clk 0:00:08]} 41. Kf3 {[%clk 0:00:30]}  d4 {[%clk 0:00:09]} 42. Ke4 {[%clk 0:00:18]}  Nc3+ {[%clk 0:00:05]} 43. Kf3 {[%clk 0:00:17]}  Nd5 {[%clk 0:00:06]} 44. Rd6 {[%clk 0:00:17]}  Ne3 {[%clk 0:00:06]} 45. Ke4 {[%clk 0:00:17]}  Nf5 {[%clk 0:00:05]} 46. Rd7 {[%clk 0:00:17]}  Kg8 {[%clk 0:00:05]} 47. Kd5 {[%clk 0:00:16]}  Kf8 {[%clk 0:00:01]} 48. Ke6 {[%clk 0:00:16]}  Ke8 {[%clk 0:00:02]} 49. Ra7 {[%clk 0:00:15]}  Kd8 {[%clk 0:00:03]} 50. Kf7 {[%clk 0:00:14]}  d3 {[%clk 0:00:03]} 51. Ra2 {[%clk 0:00:13]}  Bc3 {[%clk 0:00:02]} 52. Kxg6 {[%clk 0:00:14]}  Ne3 {[%clk 0:00:01]} 53. Kf7 {[%clk 0:00:09]}  d2 {[%clk 0:00:01]} 54. Rxd2+ {[%clk 0:00:07]}  Bxd2 {[%clk 0:00:02]} 55. g6 {[%clk 0:00:08]}  Bc3 {[%clk 0:00:03]} 56. g7 {[%clk 0:00:08]}  Bxg7 {[%clk 0:00:03]} 57. Kxg7 {[%clk 0:00:09]}  Nd5 {[%clk 0:00:03]} 58. f5 {[%clk 0:00:09]}  Ke7 {[%clk 0:00:04]} 59. Kg6 {[%clk 0:00:09]}  Nf6 {[%clk 0:00:04]} 60. Kg7 {[%clk 0:00:10]}  Ne4 {[%clk 0:00:04]} 61. Kg6 {[%clk 0:00:10]}  Nf6 {[%clk 0:00:05]} 62. Kg5 {[%clk 0:00:11]}  Nd5 {[%clk 0:00:06]} 63. Kg6 {[%clk 0:00:11]}  Nf4+ {[%clk 0:00:06]} 64. Kg7 {[%clk 0:00:11]}  Nd5 {[%clk 0:00:07]} 65. f6+ {[%clk 0:00:11]}  Nxf6 {[%clk 0:00:08]} 1/2-1/2


[Site "https://www.chess.com"]